fUST/lending_fUST_20240414
["ID","MTS","AMOUNT","RATE_DAILY","PERIOD"]
[322580300,1713083442438,-694.45333333,0.00041094,31]
[322580304,1713083442452,-694.45333333,0.00041094,31]
[322580307,1713083442465,-683.6025,0.00041094,31]
[322580310,1713083442479,-694.45333333,0.00041094,31]
[322580312,1713083442492,-694.45333333,0.00041094,31]
[322580315,1713083442505,-683.6025,0.00041094,31]
[322580319,1713083442516,-683.6025,0.00041094,31]
[322580323,1713083442526,-694.45333333,0.00041094,31]
[322580326,1713083442537,-625.008,0.00041094,31]
[322580329,1713083442549,-694.45333333,0.00041094,31]
[322580331,1713083442562,-625.008,0.00041094,31]
[322580333,1713083442574,-683.6025,0.00041094,31]
[322580336,1713083442586,-683.6025,0.00041094,31]
[322580338,1713083442599,-694.45333333,0.00041094,31]
[322580341,1713083442627,-625.008,0.00041094,31]
[322580343,1713083442639,-694.45333333,0.00041094,31]
[322580345,1713083442650,-683.6025,0.00041094,31]
[322580347,1713083442661,-694.45333333,0.00041094,31]
[322580350,1713083442673,-683.6025,0.00041094,31]
[322580352,1713083442684,-683.6025,0.00041094,31]
[322580354,1713083442695,-683.6025,0.00041094,31]
[322580356,1713083442707,-683.6025,0.00041094,31]
[322580358,1713083442718,-683.6025,0.00041094,31]
[322580361,1713083442730,-694.45333333,0.00041094,31]
[322580363,1713083442741,-683.6025,0.00041094,31]
[322580365,1713083442752,-683.6025,0.00041094,31]
[322580367,1713083442762,-694.45333333,0.00041094,31]
[322580369,1713083442774,-694.45333333,0.00041094,31]
[322580371,1713083442787,-683.6025,0.00041094,31]
[322580374,1713083442798,-416.67200004,0.00041094,31]
[322580376,1713083442809,-157.24975167,0.00041094,31]
[322580378,1713083442821,-21224.83178018,0.00041095,5]
[322580380,1713083442832,-500.0,0.00041095,7]
[322580382,1713083442844,-500.0,0.00041095,7]
[322580384,1713083442855,-500.0,0.00041095,7]
[322580386,1713083442866,-559.04792857,0.00041095,7]
[322580389,1713083442877,-500.0,0.00041095,7]
[322580391,1713083442889,-500.0,0.00041095,7]
[322580393,1713083442900,-500.0,0.00041095,7]
[322580395,1713083442913,-500.0,0.00041095,7]
[322580397,1713083442925,-500.0,0.00041095,7]
[322580399,1713083442936,-500.0,0.00041095,7]
[322580402,1713083442948,-500.0,0.00041095,7]
[322580404,1713083442960,-500.0,0.00041095,7]
[322580406,1713083442972,-500.0,0.00041095,7]
[322580408,1713083442984,-500.0,0.00041095,7]
[322580410,1713083442996,-500.0,0.00041095,7]
[322580413,1713083443008,-500.0,0.00041095,7]
[322580415,1713083443020,-165.11002875,0.00041095,7]
[322580417,1713083443034,-500.0,0.00041095,7]
[322580419,1713083443045,-500.0,0.00041095,7]
[322580421,1713083443057,-500.0,0.00041095,7]
[322580423,1713083443067,-500.0,0.00041095,7]
[322580425,1713083443078,-500.0,0.00041095,7]
[322580428,1713083443089,-500.0,0.00041095,7]
[322580430,1713083443101,-500.0,0.00041095,7]
[322580432,1713083443111,-500.0,0.00041095,7]
[322580434,1713083443123,-500.0,0.00041095,7]
[322580436,1713083443134,-500.0,0.00041095,7]
[322580439,1713083443145,-500.0,0.00041095,7]
[322580441,1713083443156,-500.0,0.00041095,7]
[322580443,1713083443167,-500.0,0.00041095,7]
[322580445,1713083443179,-500.0,0.00041095,7]
[322580448,1713083443190,-500.0,0.00041095,7]
[322580450,1713083443201,-500.0,0.00041095,7]
[322580453,1713083443212,-500.0,0.00041095,7]
[322580456,1713083443223,-500.0,0.00041095,7]
[322580458,1713083443234,-532.12693249,0.00041095,7]
[322580461,1713083443245,-500.0,0.00041095,7]
[322580464,1713083443256,-500.0,0.00041095,7]
[322580468,1713083443269,-500.0,0.00041095,7]
[322580470,1713083443281,-418.69830132,0.00041095,7]
[322580471,1713083443293,-500.0,0.00041095,7]
[322580472,1713083443304,-525.97516378,0.00041095,7]
[322580473,1713083443316,-500.0,0.00041095,7]
[322580474,1713083443327,-500.0,0.00041095,7]
[322580475,1713083443339,-503.92033025,0.00041095,7]
[322580476,1713083443350,-500.0,0.00041095,7]
[322580477,1713083443361,-500.0,0.00041095,7]
[322580478,1713083443373,-500.0,0.00041095,7]
[322580479,1713083443384,-500.0,0.00041095,7]
[322580480,1713083443395,-500.0,0.00041095,7]
[322580481,1713083443406,-500.0,0.00041095,7]
[322580482,1713083443417,-500.0,0.00041095,7]
[322580483,1713083443428,-500.0,0.00041095,7]
[322580484,1713083443437,-500.0,0.00041095,7]
[322580485,1713083443446,-500.0,0.00041095,7]
[322580486,1713083443456,-500.0,0.00041095,7]
[322580487,1713083443466,-500.0,0.00041095,7]
[322580488,1713083443476,-500.0,0.00041095,7]
[322580505,1713083443667,-500.0,0.00041095,7]
[322580508,1713083443681,-500.0,0.00041095,7]
[322580510,1713083443693,-500.0,0.00041095,7]
[322580512,1713083443701,-500.0,0.00041095,7]
[322580514,1713083443710,-500.0,0.00041095,7]
[322580516,1713083443719,-500.0,0.00041095,7]
[322580518,1713083443728,-500.0,0.00041095,7]
[322580520,1713083443737,-500.0,0.00041095,7]
[322580522,1713083443746,-500.0,0.00041095,7]
[322580524,1713083443755,-500.0,0.00041095,7]
[322580526,1713083443764,-500.0,0.00041095,7]
[322580528,1713083443772,-500.0,0.00041095,7]
[322580529,1713083443782,-378.4998339,0.00041095,7]
[322580531,1713083443791,-500.0,0.00041095,7]
[322580533,1713083443800,-535.74233642,0.00041095,7]
[322580535,1713083443810,-503.20666225,0.00041095,7]
[322580537,1713083443819,-500.0,0.00041095,7]
[322580540,1713083443828,-500.0,0.00041095,7]
[322580542,1713083443838,-500.0,0.00041095,7]
[322580544,1713083443847,-500.0,0.00041095,7]
[322580545,1713083443857,-442.80371329,0.00041095,7]
[322580547,1713083443866,-500.0,0.00041095,7]
[322580550,1713083443876,-500.0,0.00041095,7]
[322580551,1713083443886,-500.0,0.00041095,7]
[322580554,1713083443896,-500.0,0.00041095,7]
[322580556,1713083443905,-500.0,0.00041095,7]
[322580558,1713083443914,-500.0,0.00041095,7]
[322580559,1713083443923,-500.0,0.00041095,7]
[322580561,1713083443932,-500.0,0.00041095,7]
[322580563,1713083443941,-500.0,0.00041095,7]
[322580565,1713083443951,-500.0,0.00041095,7]
[322580568,1713083443963,-500.0,0.00041095,7]
[322580569,1713083443973,-500.0,0.00041095,7]
[322580572,1713083443982,-537.68,0.00041095,7]
[322580573,1713083443991,-500.0,0.00041095,7]
[322580576,1713083444001,-500.0,0.00041095,7]
[322580577,1713083444011,-193.32870484,0.00041095,7]
[322580579,1713083444021,-500.0,0.00041095,7]
[322580581,1713083444031,-500.0,0.00041095,7]
[322580583,1713083444041,-500.0,0.00041095,7]
[322580585,1713083444050,-501.48988699,0.00041095,7]
[322580587,1713083444059,-500.0,0.00041095,7]
[322580589,1713083444069,-500.0,0.00041095,7]
[322580591,1713083444078,-500.0,0.00041095,7]
[322580593,1713083444087,-500.0,0.00041095,7]
[322580595,1713083444095,-500.0,0.00041095,7]
[322580597,1713083444106,-500.0,0.00041095,7]
[322580599,1713083444115,-500.0,0.00041095,7]
[322580601,1713083444124,-500.0,0.00041095,7]
[322580603,1713083444133,-500.0,0.00041095,7]
[322580605,1713083444142,-500.0,0.00041095,7]
[322580607,1713083444152,-500.0,0.00041095,7]
[322580609,1713083444161,-500.0,0.00041095,7]
[322580611,1713083444170,-500.0,0.00041095,7]
[322580613,1713083444178,-500.0,0.00041095,7]
[322580615,1713083444187,-348.87782792,0.00041095,7]
[322580617,1713083444196,-500.0,0.00041095,7]
[322580619,1713083444205,-500.0,0.00041095,7]
[322580621,1713083444214,-500.0,0.00041095,7]
[322580623,1713083444224,-500.0,0.00041095,7]
[322580625,1713083444233,-500.0,0.00041095,7]
[322580627,1713083444242,-500.0,0.00041095,7]
[322580629,1713083444251,-500.0,0.00041095,7]
[322580631,1713083444260,-531.03193404,0.00041095,7]
[322580633,1713083444270,-500.0,0.00041095,7]
[322580635,1713083444279,-500.0,0.00041095,7]
[322580637,1713083444288,-500.0,0.00041095,7]
[322580639,1713083444297,-414.73420873,0.00041095,7]
[322580641,1713083444306,-500.0,0.00041095,7]
[322580643,1713083444316,-500.0,0.00041095,7]
[322580645,1713083444325,-504.06442375,0.00041095,7]
[322580647,1713083444334,-500.0,0.00041095,7]
[322580649,1713083444343,-500.0,0.00041095,7]
[322580651,1713083444352,-500.0,0.00041095,7]
[322580653,1713083444361,-500.0,0.00041095,7]
[322580655,1713083444371,-500.0,0.00041095,7]
[322580657,1713083444380,-326.40000184,0.00041095,7]
[322580659,1713083444390,-502.88020961,0.00041095,7]
[322580661,1713083444399,-500.85484549,0.00041095,7]
[322580663,1713083444408,-500.0,0.00041095,7]
[322580665,1713083444417,-500.0,0.00041095,7]
[322580667,1713083444426,-500.0,0.00041095,7]
[322580669,1713083444435,-500.0,0.00041095,7]
[322580671,1713083444444,-500.0,0.00041095,7]
[322580672,1713083444453,-540.58638827,0.00041095,7]
[322580675,1713083444462,-500.0,0.00041095,7]
[322580677,1713083444471,-500.0,0.00041095,7]
[322580679,1713083444481,-500.0,0.00041095,7]
[322580681,1713083444490,-500.0,0.00041095,7]
[322580683,1713083444500,-500.0,0.00041095,7]
[322580685,1713083444510,-500.0,0.00041095,7]
[322580686,1713083444520,-500.0,0.00041095,7]
[322580688,1713083444530,-508.18481208,0.00041095,7]
[322580690,1713083444541,-500.0,0.00041095,7]
[322580692,1713083444550,-500.0,0.00041095,7]
[322580694,1713083444560,-500.0,0.00041095,7]
[322580697,1713083444570,-500.0,0.00041095,7]
[322580698,1713083444580,-500.0,0.00041095,7]
[322580700,1713083444589,-500.0,0.00041095,7]
[322580703,1713083444599,-500.0,0.00041095,7]
[322580705,1713083444612,-500.0,0.00041095,7]
[322580706,1713083444621,-152.4790328,0.00041095,7]
[322580708,1713083444631,-500.0,0.00041095,7]
[322580710,1713083444640,-500.0,0.00041095,7]
[322580712,1713083444651,-500.0,0.00041095,7]
[322580715,1713083444661,-500.0,0.00041095,7]
[322580717,1713083444670,-500.0,0.00041095,7]
[322580719,1713083444680,-500.0,0.00041095,7]
[322580720,1713083444689,-500.0,0.00041095,7]
[322580723,1713083444698,-500.0,0.00041095,7]
[322580724,1713083444708,-500.0,0.00041095,7]
[322580726,1713083444717,-500.0,0.00041095,7]
[322580728,1713083444727,-500.0,0.00041095,7]
[322580731,1713083444736,-500.0,0.00041095,7]
[322580732,1713083444746,-500.0,0.00041095,7]
[322580734,1713083444755,-500.0,0.00041095,7]
[322580736,1713083444764,-500.0,0.00041095,7]
[322580738,1713083444774,-500.0,0.00041095,7]
[322580740,1713083444784,-500.0,0.00041095,7]
[322580742,1713083444794,-516.71986555,0.00041095,7]
[322580744,1713083444804,-500.0,0.00041095,7]
[322580746,1713083444812,-500.0,0.00041095,7]
[322580748,1713083444821,-500.0,0.00041095,7]
[322580750,1713083444831,-500.0,0.00041095,7]
[322580752,1713083444840,-500.0,0.00041095,7]
[322580754,1713083444849,-500.0,0.00041095,7]
[322580756,1713083444858,-500.0,0.00041095,7]
[322580758,1713083444868,-500.0,0.00041095,7]
[322580760,1713083444877,-500.0,0.00041095,7]
[322580762,1713083444886,-561.20082259,0.00041095,7]
[322580765,1713083444896,-500.0,0.00041095,7]
[322580766,1713083444905,-500.89878606,0.00041095,7]
[322580768,1713083444915,-500.0,0.00041095,7]
[322580770,1713083444924,-500.0,0.00041095,7]
[322580772,1713083444933,-500.0,0.00041095,7]
[322580774,1713083444943,-500.0,0.00041095,7]
[322580776,1713083444953,-500.0,0.00041095,7]
[322580778,1713083444962,-500.0,0.00041095,7]
[322580781,1713083444971,-500.0,0.00041095,7]
[322580782,1713083444981,-500.0,0.00041095,7]
[322580784,1713083444990,-500.0,0.00041095,7]
[322580786,1713083444999,-500.0,0.00041095,7]
[322580788,1713083445009,-192.85074791,0.00041095,7]
[322580790,1713083445018,-500.0,0.00041095,7]
[322580792,1713083445027,-500.0,0.00041095,7]
[322580794,1713083445038,-500.0,0.00041095,7]
[322580797,1713083445047,-500.0,0.00041095,7]
[322580798,1713083445056,-500.0,0.00041095,7]
[322580800,1713083445065,-500.0,0.00041095,7]
[322580802,1713083445075,-500.0,0.00041095,7]
[322580805,1713083445085,-500.0,0.00041095,7]
[322580806,1713083445095,-500.0,0.00041095,7]
[322580809,1713083445104,-500.0,0.00041095,7]
[322580811,1713083445114,-585.66839295,0.00041095,7]
[322580813,1713083445123,-500.0,0.00041095,7]
[322580814,1713083445133,-500.0,0.00041095,7]
[322580816,1713083445145,-500.0,0.00041095,7]
[322580818,1713083445154,-410.23011542,0.00041095,7]
[322580821,1713083445164,-502.12563067,0.00041095,7]
[322580822,1713083445173,-888.1683383,0.00041095,7]
[322580857,1713083445455,-25.9016617,0.00041095,7]
[322580859,1713083445464,-393.02994276,0.00041095,7]
[322580861,1713083445474,-914.07,0.00041095,7]
[322580863,1713083445484,-914.07,0.00041095,7]
[322580865,1713083445494,-529.42839554,0.00041095,7]
[322580867,1713083445506,-384.64160446,0.00041095,7]
[322580869,1713083445516,-914.07,0.00041095,7]
[322580871,1713083445526,-914.07,0.00041095,7]
[322580874,1713083445537,-914.07,0.00041095,7]
[322580875,1713083445546,-914.07,0.00041095,7]
[322580877,1713083445556,-914.07,0.00041095,7]
[322580880,1713083445565,-914.07,0.00041095,7]
[322580882,1713083445575,-914.07,0.00041095,7]
[322580883,1713083445584,-914.07,0.00041095,7]
[322580886,1713083445594,-500.0,0.00041095,7]
[322580888,1713083445605,-500.0,0.00041095,7]
[322580890,1713083445618,-500.0,0.00041095,7]
[322580892,1713083445627,-914.07,0.00041095,7]
[322580894,1713083445636,-500.0,0.00041095,7]
[322580896,1713083445645,-500.0,0.00041095,7]
[322580898,1713083445655,-914.07,0.00041095,7]
[322580900,1713083445665,-503.67009233,0.00041095,7]
[322580902,1713083445674,-500.0,0.00041095,7]
[322580904,1713083445684,-914.07,0.00041095,7]
[322580906,1713083445693,-313.92283683,0.00041095,7]
[322580908,1713083445702,-914.07,0.00041095,7]
[322580910,1713083445711,-914.07,0.00041095,7]
[322580911,1713083445721,-914.07,0.00041095,7]
[322580914,1713083445730,-914.07,0.00041095,7]
[322580916,1713083445740,-914.07,0.00041095,7]
[322580918,1713083445750,-914.07,0.00041095,7]
[322580920,1713083445759,-914.07,0.00041095,7]
[322580922,1713083445770,-914.07,0.00041095,7]
[322580924,1713083445779,-914.15530607,0.00041095,7]
[322580925,1713083445789,-404.75263735,0.00041095,7]
[322580947,1713083445981,-396.1435817,0.00041052,2]
[322580949,1713083445991,-95.24736265,0.00041095,7]
[322580951,1713083446002,-500.0,0.00041095,7]
[322580953,1713083446012,-500.0,0.00041095,7]
[322580955,1713083446022,-500.0,0.00041095,7]
[322580957,1713083446033,-500.0,0.00041095,7]
[322580959,1713083446043,-175.17401495,0.00041095,7]
[322580961,1713083446053,-500.0,0.00041095,7]
[322580963,1713083446063,-500.0,0.00041095,7]
[322580965,1713083446073,-500.0,0.00041095,7]
[322580967,1713083446084,-500.0,0.00041095,7]
[322580969,1713083446094,-500.0,0.00041095,7]
[322580971,1713083446103,-500.0,0.00041095,7]
[322580973,1713083446113,-433.31061169,0.00041095,7]
[322580975,1713083446123,-500.0,0.00041095,7]
[322580977,1713083446134,-380.12442901,0.00041095,7]
[322580979,1713083446149,-119.87557099,0.00041095,7]
[322580981,1713083446159,-237.13450954,0.00041095,7]
[322580983,1713083446169,-500.0,0.00041095,7]
[322580985,1713083446179,-500.0,0.00041095,7]
[322580987,1713083446189,-500.0,0.00041095,7]
[322580989,1713083446199,-500.0,0.00041095,7]
[322580991,1713083446210,-500.0,0.00041095,7]
[322580993,1713083446220,-202.81706947,0.00041095,7]
[322581486,1713083915380,-445.0,0.00032,30]
[322581940,1713084638143,-162.673665,0.00027397,2]
[322581941,1713084638153,-2147.73455586,0.00030397,4]
[322581942,1713084638201,-667.72873334,0.00030397,4]
[322581943,1713084638210,-223.61552686,0.00030398,4]
[322581951,1713084638369,-285.12073066,0.00031998,4]
[322581952,1713084638386,-116.20669221,0.00032,30]
[322582267,1713084642039,-5411.19546341,0.00032,30]
[322582397,1713084643201,-4394.81047394,0.00032,30]
[322582402,1713084643241,-5380.23107841,0.00032,30]
[322582672,1713084646067,-376.38375792,0.000299,2]
[322582674,1713084646077,-1457.45861362,0.00030396,4]
[322582676,1713084646087,-4007.34019017,0.00032,30]
[322582681,1713084646131,-38988.09662415,0.00032,30]
[322582683,1713084646142,-465.26500893,0.00034,4]
[322582685,1713084646152,-170.54800159,0.00035516,7]
[322582687,1713084646162,-371.144898,0.00035616,120]
[322582689,1713084646172,-2045.13777758,0.00037,2]
[322582691,1713084646182,-162.673665,0.00038356,2]
[322582693,1713084646192,-131.54728256,0.0004,4]
[322586038,1713085679101,250.0,0.00042572,35]
[322586229,1713085840327,-154.87609912,0.00027396,2]
[322586230,1713085840338,-160.517262,0.00027397,2]
[322586231,1713085840347,-45.17663888,0.00027397,2]
[322586232,1713085840383,-128.50216612,0.00027397,2]
[322586233,1713085840393,-500.0,0.00035,2]
[322586234,1713085840402,-500.0,0.00035,7]
[322586235,1713085840411,-166.666666,0.0003813,2]
[322586236,1713085840421,-443.311962,0.00038754,120]
[322586237,1713085840434,-164.972198,0.000396,2]
[322586238,1713085840445,-1000.0,0.000396,28]
[322586239,1713085840455,-306.0,0.00039619,2]
[322586240,1713085840465,-2000.0,0.000398,31]
[322586241,1713085840477,-400.0,0.00039989,3]
[322586242,1713085840486,-400.0,0.00039989,5]
[322586244,1713085840496,-7000.0,0.0003999,7]
[322586245,1713085840506,-273.04379631,0.0004,2]
[322586246,1713085840516,-1407.60638131,0.0004,4]
[322586247,1713085840526,-173.8848422,0.0004014,2]
[322586248,1713085840537,-153.0,0.00040393,2]
[322586249,1713085840546,-153.0,0.00040393,2]
[322586250,1713085840557,-153.0,0.00040393,2]
[322586251,1713085840567,-153.0,0.00040393,2]
[322586252,1713085840576,-250.92250528,0.00040472,2]
[322586253,1713085840586,-157.07652661,0.00040683,2]
[322586254,1713085840597,-2000.0,0.000408,32]
[322586255,1713085840607,-2000.0,0.000409,2]
[322586257,1713085840617,-164.21793047,0.00040995,2]
[322586258,1713085840627,-500.0,0.00040999,7]
[322586259,1713085840637,-500.0,0.00040999,7]
[322586260,1713085840647,-500.0,0.00040999,7]
[322586261,1713085840659,-509.60843941,0.00040999,7]
[322586262,1713085840669,-22181.88351035,0.00041,5]
[322586263,1713085840680,-829.1005558,0.00041,60]
[322586264,1713085840690,-7735.45442361,0.00041,5]
[322586265,1713085840703,-796.46314424,0.00041,5]
[322586341,1713087032554,-203.78092943,0.00027396,2]
[322586342,1713087032564,-162.673665,0.00027397,2]
[322586343,1713087032573,-332.483971,0.00037339,120]
[322586344,1713087032583,-596.8187497,0.00038109,2]
[322586345,1713087032594,-400.0,0.0003811,2]
[322586346,1713087032603,-300.0,0.0003811,2]
[322586347,1713087032613,-5872.02759228,0.00038111,120]
[322586348,1713087032624,-3262.40189982,0.00038111,120]
[322586349,1713087032634,-24890.0,0.00038476,2]
[322586350,1713087032647,-167.28167018,0.000389,2]
[322586351,1713087032656,-154.90705577,0.00038947,4]
[322586352,1713087032666,-314.6642818,0.00039571,2]
[322586353,1713087032676,-580.06626667,0.00039611,2]
[322586354,1713087032686,-500.0,0.0004,2]
[322586355,1713087032696,-500.0,0.0004,4]
[322586356,1713087032706,-500.0,0.0004,2]
[322586357,1713087032716,-500.0,0.0004,4]
[322586358,1713087032726,-1407.60638131,0.00040077,4]
[322586359,1713087032737,-203.0300069,0.00040078,2]
[322586360,1713087032747,-203.0300069,0.00040078,2]
[322586361,1713087032756,-203.0300069,0.00040078,2]
[322586362,1713087032766,-202.0897157,0.00040078,2]
[322586363,1713087032775,-203.0300069,0.00040178,2]
[322586364,1713087032784,-2000.0,0.000408,31]
[322586365,1713087032794,-2000.0,0.000408,32]
[322586366,1713087032803,-2000.0,0.000409,2]
[322586367,1713087032812,-248.20380488,0.00040997,2]
[322586368,1713087032823,-4370.48789877,0.00040997,4]
[322586369,1713087032834,-278.21810736,0.00040997,4]
[322586370,1713087032843,-186.77324729,0.00040997,2]
[322586371,1713087032853,-1828.26657945,0.00040997,4]
[322586372,1713087032862,-299.82752621,0.00040997,4]
[322586373,1713087032871,-237.06998667,0.00040997,4]
[322586374,1713087032881,-620.0,0.00040998,31]
[322586375,1713087032891,-223.2898266,0.00040998,7]
[322586376,1713087032901,-53165.35062844,0.00040999,4]
[322586377,1713087032911,-225.37872353,0.00040999,4]
[322586378,1713087032920,-250.0,0.00040999,2]
[322586379,1713087032929,-151.0,0.00040999,2]
[322586380,1713087032939,-522.2628737,0.00040999,31]
[322586381,1713087032948,-398.20979274,0.00040999,31]
[322586382,1713087032957,-558.12407666,0.00040999,31]
[322586383,1713087032966,-476.79494397,0.00040999,31]
[322586384,1713087032976,-256.43642088,0.00040999,31]
[322586385,1713087032986,-459.53504343,0.00040999,31]
[322586386,1713087032994,-181.40027232,0.00040999,31]
[322586387,1713087033004,-500.0,0.00040999,31]
[322586388,1713087033014,-16243.55848038,0.00041,5]
[322586389,1713087033023,-403.08243215,0.00041,5]
[322586390,1713087033032,-1061.90418992,0.00041,4]
[322586391,1713087033041,-11657.24850307,0.00041,2]
[322586392,1713087033054,-156466.40932282,0.00041,2]
[322586393,1713087033063,-1000.0,0.00041,2]
[322586394,1713087033073,-2500.0,0.00041,30]
[322586395,1713087033081,-2500.0,0.0004101,30]
[322586396,1713087033090,-2500.0,0.0004102,30]
[322586397,1713087033100,-2500.0,0.0004103,30]
[322586398,1713087033109,-2500.0,0.0004104,31]
[322586399,1713087033117,-2500.0,0.0004105,31]
[322586400,1713087033127,-2500.0,0.0004106,31]
[322586401,1713087033136,-426.0,0.00041065,35]
[322586402,1713087033149,-2500.0,0.0004107,31]
[322586403,1713087033158,-426.0,0.00041075,35]
[322586404,1713087033168,-1000.0,0.0004108,36]
[322586405,1713087033179,-2500.0,0.0004108,31]
[322586406,1713087033192,-426.0,0.00041085,35]
[322586407,1713087033205,-295.8,0.00041085,35]
[322586408,1713087033218,-150.0,0.00041088,2]
[322586409,1713087033231,-7309.79067718,0.00041089,2]
[322586461,1713087040592,-1292.28,0.00041089,2]
[322586559,1713087043642,-6099.42958972,0.00041089,2]
[322586560,1713087043654,-2500.0,0.0004109,31]
[322586561,1713087043665,-232.22195338,0.00041093,4]
[322586562,1713087043676,-148.22818452,0.00041094,4]
[322586609,1713087797798,-160.517262,0.00027397,2]
[322586784,1713088232764,-150.0,0.00025297,2]
[322586786,1713088232775,-150.0,0.00030297,2]
[322586788,1713088232784,-839.10753105,0.0003717,2]
[322586790,1713088232794,-2086.04920876,0.00038929,4]
[322586792,1713088232803,-14.84326019,0.00039851,120]
[322587063,1713088240787,-343.46954581,0.00039851,120]
[322587065,1713088240797,-184.31016278,0.0004094,10]
[322587067,1713088240806,-387.22029141,0.00040995,2]
[322587768,1713088246810,-320.0,0.00040995,2]
[322587958,1713088484845,4199.75878409,0.00022,90]
[322588052,1713089431863,-236.25199096,0.00027394,2]
[322588053,1713089431873,-1855.61624553,0.00027394,2]
[322588054,1713089431882,-206.61864278,0.00027395,2]
[322588055,1713089431894,-641.19217376,0.00027395,2]
[322588056,1713089431903,-171.477777,0.00027397,2]
[322588057,1713089431913,-119.62815988,0.00027397,2]
[322588059,1713089431924,-43.04550512,0.00027397,2]
[322588060,1713089431933,-268.734604,0.00038894,120]
[322588062,1713089431942,-1873.95237598,0.00039,14]
[322588064,1713089431952,-372.47936124,0.00039038,4]
[322588065,1713089431961,-400.0,0.00039578,3]
[322588066,1713089431971,-251.63815366,0.00039578,5]
[322588067,1713089431983,-148.36184634,0.00039578,5]
[322588068,1713089431993,-62491.88716331,0.00039579,2]
[322588069,1713089432003,-7119.59117549,0.00039998,2]
[322588070,1713089432012,-645.0,0.0004,2]
[322588071,1713089432023,-500.0,0.0004,30]
[322588072,1713089432032,-203.0300069,0.00040178,2]
[322588073,1713089432042,-203.0300069,0.00040178,2]
[322588074,1713089432051,-203.0300069,0.00040178,2]
[322588075,1713089432060,-203.0300069,0.00040178,2]
[322588076,1713089432070,-203.0300069,0.00040178,2]
[322588077,1713089432079,-25.15659432,0.00040278,2]
[322588097,1713089437936,-177.87341258,0.00040278,2]
[322588099,1713089437946,-153.0,0.00040452,2]
[322588101,1713089437955,-763.07542148,0.00040889,30]
[322588103,1713089437966,-1936.57721045,0.00040889,30]
[322588105,1713089437975,-500.0,0.000409,7]
[322588107,1713089437984,-203.0300069,0.000409,2]
[322588109,1713089437994,-203.0300069,0.000409,2]
[322588111,1713089438003,-203.0300069,0.000409,2]
[322588113,1713089438012,-203.0300069,0.000409,2]
[322588115,1713089438022,-2000.0,0.00040993,2]
[322588117,1713089438031,-9751.30276195,0.00040995,2]
[322588180,1713089439978,-19366.99911832,0.00040995,2]
[322588181,1713089439988,-693.74155456,0.00041,120]
[322588182,1713089439998,-4793.80449024,0.00041,2]
[322588393,1713090638045,-160.517262,0.00027397,2]
[322588395,1713090638053,-3611.86158133,0.00031997,4]
[322588397,1713090638062,-1457.45861362,0.00031999,4]
[322588398,1713090638072,-3313.59863561,0.00032,30]
[322588399,1713090638081,-1063.42475876,0.00037,2]
[322588400,1713090638090,-154.87609912,0.00037998,4]
[322588401,1713090638100,-400.0,0.00038346,3]
[322588402,1713090638109,-200.0,0.00038346,5]
[322588403,1713090638118,-502.471348,0.00038352,120]
[322588404,1713090638127,-150.0,0.00038895,2]
[322588405,1713090638136,-203.0300069,0.00039356,2]
[322588406,1713090638146,-700.0,0.000399,2]
[322588407,1713090638155,-2000.0,0.000399,2]